[Event "*** Titled Tuesday 3|2 Blitz"]
[Site "Chess.com"]
[Date "2017.03.07"]
[Round "10"]
[White "kleinebeer98"]
[Black "daro94"]
[Result "1-0"]
[WhiteElo "2522"]
[BlackElo "2667"]
[TimeControl "180+2"]
[EndTime "15:22:43 PST"]
[Termination "kleinebeer98 won by checkmate"]

1. e4 {[%clk 0:03:02]} 1... c6 {[%clk 0:02:59.3]} 2. d4 {[%clk 0:03:02.9]} 2...
d5 {[%clk 0:03:00.8]} 3. f3 {[%clk 0:03:04.3]} 3... Qb6 {[%clk 0:02:58.2]} 4.
Nc3 {[%clk 0:03:04.8]} 4... e6 {[%clk 0:02:58.7]} 5. a3 {[%clk 0:02:35.1]} 5...
a6 {[%clk 0:02:56.5]} 6. Be3 {[%clk 0:02:33.1]} 6... Nf6 {[%clk 0:02:56.8]} 7.
Bd3 {[%clk 0:02:29.9]} 7... c5 {[%clk 0:02:44.5]} 8. exd5 {[%clk 0:02:12.7]}
8... exd5 {[%clk 0:02:45.1]} 9. dxc5 {[%clk 0:01:46.2]} 9... Bxc5 {[%clk
0:02:04.5]} 10. Na4 {[%clk 0:01:46.9]} 10... Qa5+ {[%clk 0:02:04.4]} 11. b4
{[%clk 0:01:48.1]} 11... Qxa4 {[%clk 0:02:05.6]} 12. Bxc5 {[%clk 0:01:49.3]}
12... Be6 {[%clk 0:02:06.4]} 13. Ne2 {[%clk 0:01:47.3]} 13... Nbd7 {[%clk
0:01:50.7]} 14. Nc3 {[%clk 0:01:48.3]} 14... Qc6 {[%clk 0:01:51.4]} 15. Bd4
{[%clk 0:01:49.9]} 15... O-O {[%clk 0:01:50.7]} 16. O-O {[%clk 0:01:50.9]} 16...
Rac8 {[%clk 0:01:50]} 17. Qe1 {[%clk 0:01:44.9]} 17... Qd6 {[%clk 0:01:49.2]}
18. Qh4 {[%clk 0:01:44.3]} 18... Rfd8 {[%clk 0:01:23.2]} 19. Rae1 {[%clk
0:01:31.1]} 19... h6 {[%clk 0:01:19.4]} 20. Kh1 {[%clk 0:01:29.5]} 20... a5
{[%clk 0:01:00.8]} 21. f4 {[%clk 0:01:05.1]} 21... axb4 {[%clk 0:00:59.7]} 22.
axb4 {[%clk 0:01:07]} 22... Ne4 {[%clk 0:00:53.5]} 23. f5 {[%clk 0:00:53.4]}
23... Bxf5 {[%clk 0:00:36.8]} 24. Rxf5 {[%clk 0:00:52.3]} 24... Nxc3 {[%clk
0:00:38.2]} 25. Bxc3 {[%clk 0:00:53.5]} 25... d4 {[%clk 0:00:27.1]} 26. Qxd4
{[%clk 0:00:51]} 26... Qxd4 {[%clk 0:00:27]} 27. Bxd4 {[%clk 0:00:52.9]} 27...
Nf8 {[%clk 0:00:28.6]} 28. Bc5 {[%clk 0:00:52.6]} 28... Ne6 {[%clk 0:00:29.8]}
29. Bc4 {[%clk 0:00:53.7]} 29... Nxc5 {[%clk 0:00:29.2]} 30. Bxf7+ {[%clk
0:00:50.2]} 30... Kh7 {[%clk 0:00:30.5]} 31. bxc5 {[%clk 0:00:52.1]} 31... Rd2
{[%clk 0:00:28.3]} 32. c4 {[%clk 0:00:49.3]} 32... g6 {[%clk 0:00:21.7]} 33. Rd5
{[%clk 0:00:49.2]} 33... Rf2 {[%clk 0:00:19.2]} 34. Rd7 {[%clk 0:00:49.3]} 34...
h5 {[%clk 0:00:16]} 35. Rxb7 {[%clk 0:00:45.7]} 35... Rxc5 {[%clk 0:00:15.3]}
36. Bd5+ {[%clk 0:00:47.1]} 36... Kh6 {[%clk 0:00:16.4]} 37. h3 {[%clk
0:00:48.3]} 37... Rd2 {[%clk 0:00:13.6]} 38. Rb6 {[%clk 0:00:48.4]} 38... Kg5
{[%clk 0:00:14.3]} 39. Ree6 {[%clk 0:00:49.6]} 39... Kh4 {[%clk 0:00:14.2]} 40.
Rxg6 {[%clk 0:00:48]} 40... Rcxd5 {[%clk 0:00:13.2]} 41. Kh2 {[%clk 0:00:18.7]}
41... Rc5 {[%clk 0:00:10.9]} 42. Rbd6 {[%clk 0:00:17.1]} 42... Rxd6 {[%clk
0:00:09.1]} 43. g3# {[%clk 0:00:18.4]} 1-0

[Event "*** Titled Tuesday 3|2 Blitz"]
[Site "Chess.com"]
[Date "2017.03.07"]
[Round "10"]
[White "Noukii"]
[Black "VerdeNotte"]
[Result "1-0"]
[WhiteElo "2658"]
[BlackElo "2564"]
[TimeControl "180+2"]
[EndTime "15:22:50 PST"]
[Termination "Noukii won by resignation"]

1. d4 {[%clk 0:03:02]} 1... e6 {[%clk 0:02:58.8]} 2. c4 {[%clk 0:03:00.6]} 2...
f5 {[%clk 0:02:59.7]} 3. g3 {[%clk 0:02:59.7]} 3... Nf6 {[%clk 0:03:01]} 4. Bg2
{[%clk 0:03:00.9]} 4... Bb4+ {[%clk 0:03:02]} 5. Bd2 {[%clk 0:03:01.8]} 5...
Bxd2+ {[%clk 0:03:02.3]} 6. Qxd2 {[%clk 0:03:02.4]} 6... O-O {[%clk 0:03:03.4]}
7. Nc3 {[%clk 0:03:03.1]} 7... d6 {[%clk 0:03:03.4]} 8. e3 {[%clk 0:02:55.3]}
8... Nc6 {[%clk 0:03:00.5]} 9. Nge2 {[%clk 0:02:56.1]} 9... e5 {[%clk
0:02:57.8]} 10. d5 {[%clk 0:02:56.3]} 10... Nb8 {[%clk 0:02:53.7]} 11. f4 {[%clk
0:02:57.6]} 11... Nbd7 {[%clk 0:02:48.3]} 12. O-O {[%clk 0:02:58.4]} 12... a5
{[%clk 0:02:46.4]} 13. b3 {[%clk 0:02:45.7]} 13... Nc5 {[%clk 0:02:42.2]} 14. h3
{[%clk 0:02:42.5]} 14... Qe7 {[%clk 0:02:37.9]} 15. Rae1 {[%clk 0:02:37.8]}
15... Bd7 {[%clk 0:02:36.5]} 16. Nc1 {[%clk 0:02:35]} 16... Rae8 {[%clk
0:02:24.2]} 17. Kh2 {[%clk 0:02:07.4]} 17... b6 {[%clk 0:02:15.5]} 18. Re2
{[%clk 0:02:04.6]} 18... Nfe4 {[%clk 0:02:12]} 19. Nxe4 {[%clk 0:02:02.4]} 19...
Nxe4 {[%clk 0:02:08.5]} 20. Bxe4 {[%clk 0:02:03.5]} 20... fxe4 {[%clk
0:02:10.4]} 21. Ref2 {[%clk 0:02:02.1]} 21... exf4 {[%clk 0:02:07.5]} 22. Rxf4
{[%clk 0:02:02.7]} 22... g5 {[%clk 0:01:54.3]} 23. Rxf8+ {[%clk 0:01:33.3]}
23... Rxf8 {[%clk 0:01:56.2]} 24. Rxf8+ {[%clk 0:01:34.6]} 24... Qxf8 {[%clk
0:01:57.4]} 25. Qg2 {[%clk 0:01:36.3]} 25... h5 {[%clk 0:01:19.2]} 26. h4 {[%clk
0:01:19.5]} 26... Bg4 {[%clk 0:01:11.3]} 27. hxg5 {[%clk 0:01:17.9]} 27... Qf5
{[%clk 0:00:59]} 28. Ne2 {[%clk 0:01:12.3]} 28... Bxe2 {[%clk 0:00:55.6]} 29.
Qxe2 {[%clk 0:01:14.2]} 29... Qxg5 {[%clk 0:00:55.6]} 30. Qf2 {[%clk 0:01:15.2]}
30... Kg7 {[%clk 0:00:54.1]} 31. Qf4 {[%clk 0:01:03.3]} 31... Qg6 {[%clk
0:00:43.9]} 32. Kh3 {[%clk 0:01:03.3]} 32... Qf6 {[%clk 0:00:22.1]} 33. Qxf6+
{[%clk 0:00:43.2]} 33... Kxf6 {[%clk 0:00:22.4]} 34. Kh4 {[%clk 0:00:45.1]}
34... Kg6 {[%clk 0:00:22.5]} 35. g4 {[%clk 0:00:45]} 35... hxg4 {[%clk 0:00:24]}
36. Kxg4 {[%clk 0:00:46.9]} 36... Kh6 {[%clk 0:00:21.2]} 37. Kf5 {[%clk
0:00:47.8]} 37... Kh5 {[%clk 0:00:22.6]} 38. Kxe4 {[%clk 0:00:37.4]} 38... Kg4
{[%clk 0:00:24]} 39. Kd4 {[%clk 0:00:39]} 39... Kf3 {[%clk 0:00:25.2]} 40. e4
{[%clk 0:00:40.4]} 40... Kf4 {[%clk 0:00:20.7]} 41. a3 {[%clk 0:00:41.1]} 41...
Kg5 {[%clk 0:00:07.6]} 42. e5 {[%clk 0:00:40.9]} 42... Kf5 {[%clk 0:00:09.1]}
43. e6 {[%clk 0:00:39.4]} 43... Kf6 {[%clk 0:00:10.6]} 44. Ke4 {[%clk
0:00:39.7]} 44... c6 {[%clk 0:00:05]} 45. dxc6 {[%clk 0:00:31.7]} 45... Kxe6
{[%clk 0:00:06.4]} 46. Kd4 {[%clk 0:00:30.9]} 46... a4 {[%clk 0:00:06.3]} 47. b4
{[%clk 0:00:31.2]} 1-0

[Event "*** Titled Tuesday 3|2 Blitz"]
[Site "Chess.com"]
[Date "2017.03.07"]
[Round "10"]
[White "Anton_Demchenko"]
[Black "GGuseinov"]
[Result "0-1"]
[WhiteElo "2627"]
[BlackElo "2709"]
[TimeControl "180+2"]
[EndTime "15:22:52 PST"]
[Termination "GGuseinov won on time"]

1. e4 {[%clk 0:03:01.9]} 1... c5 {[%clk 0:02:59.6]} 2. Nc3 {[%clk 0:02:57.8]}
2... Nc6 {[%clk 0:02:58.9]} 3. g3 {[%clk 0:02:59.1]} 3... g6 {[%clk 0:02:59.3]}
4. Bg2 {[%clk 0:03:00.4]} 4... Bg7 {[%clk 0:02:59.8]} 5. d3 {[%clk 0:03:02]}
5... d6 {[%clk 0:03:00.4]} 6. Nge2 {[%clk 0:03:03]} 6... Nf6 {[%clk 0:03:00.9]}
7. h3 {[%clk 0:03:02.8]} 7... O-O {[%clk 0:03:00.6]} 8. O-O {[%clk 0:03:03.5]}
8... Rb8 {[%clk 0:02:59.9]} 9. f4 {[%clk 0:03:04.4]} 9... Bd7 {[%clk 0:02:50.3]}
10. Be3 {[%clk 0:03:05.1]} 10... b5 {[%clk 0:02:47.1]} 11. a3 {[%clk 0:03:06.2]}
11... a5 {[%clk 0:02:44.7]} 12. a4 {[%clk 0:03:07.2]} 12... b4 {[%clk
0:02:31.8]} 13. Nb5 {[%clk 0:03:06.1]} 13... Ne8 {[%clk 0:02:32.2]} 14. Rb1
{[%clk 0:03:07.2]} 14... Nc7 {[%clk 0:02:28.4]} 15. c4 {[%clk 0:03:08]} 15...
Ne6 {[%clk 0:02:22.7]} 16. b3 {[%clk 0:02:51.8]} 16... Ned4 {[%clk 0:02:19.2]}
17. Qd2 {[%clk 0:02:48.9]} 17... Nxe2+ {[%clk 0:02:13.9]} 18. Qxe2 {[%clk
0:02:50.1]} 18... Nd4 {[%clk 0:02:15.4]} 19. Qf2 {[%clk 0:02:51.4]} 19... Qb6
{[%clk 0:02:12.1]} 20. g4 {[%clk 0:02:42.5]} 20... Bxb5 {[%clk 0:01:57.1]} 21.
cxb5 {[%clk 0:02:38.2]} 21... e6 {[%clk 0:01:42.9]} 22. f5 {[%clk 0:02:34.3]}
22... Be5 {[%clk 0:01:39.9]} 23. f6 {[%clk 0:02:28.8]} 23... Kh8 {[%clk
0:01:37.3]} 24. Bh6 {[%clk 0:01:59.4]} 24... Rg8 {[%clk 0:01:24.3]} 25. Kh1
{[%clk 0:01:34]} 25... Rb7 {[%clk 0:01:17.9]} 26. h4 {[%clk 0:01:29.8]} 26...
Qd8 {[%clk 0:01:13]} 27. Be3 {[%clk 0:00:58.8]} 27... Rd7 {[%clk 0:01:02.4]} 28.
Bh3 {[%clk 0:00:56]} 28... d5 {[%clk 0:00:54.8]} 29. Bg2 {[%clk 0:00:48.1]}
29... Qc7 {[%clk 0:00:49.5]} 30. exd5 {[%clk 0:00:40.1]} 30... exd5 {[%clk
0:00:50.5]} 31. Bh6 {[%clk 0:00:35]} 31... Ne6 {[%clk 0:00:42.2]} 32. Rbe1
{[%clk 0:00:20.6]} 32... Qd6 {[%clk 0:00:34.3]} 33. Qf3 {[%clk 0:00:13.3]} 33...
Nd4 {[%clk 0:00:30.8]} 34. Qe3 {[%clk 0:00:13.1]} 34... Bxf6 {[%clk 0:00:26.8]}
35. Bf4 {[%clk 0:00:05.2]} 35... Qf8 {[%clk 0:00:25.8]} 36. Be5 {[%clk
0:00:05.1]} 36... Bxe5 {[%clk 0:00:18.1]} 37. Qxe5+ {[%clk 0:00:07]} 37... Qg7
{[%clk 0:00:19.4]} 38. Bxd5 {[%clk 0:00:05.5]} 38... Nc2 {[%clk 0:00:14.4]} 0-1

[Event "*** Titled Tuesday 3|2 Blitz"]
[Site "Chess.com"]
[Date "2017.03.07"]
[Round "10"]
[White "TenisMaster"]
[Black "jcibarra"]
[Result "1-0"]
[WhiteElo "2608"]
[BlackElo "2649"]
[TimeControl "180+2"]
[EndTime "15:22:54 PST"]
[Termination "TenisMaster won on time"]

1. e4 {[%clk 0:03:02]} 1... e5 {[%clk 0:03:00.7]} 2. Nf3 {[%clk 0:03:02.5]} 2...
d6 {[%clk 0:03:02.1]} 3. d4 {[%clk 0:02:56.4]} 3... exd4 {[%clk 0:03:04]} 4.
Qxd4 {[%clk 0:02:49.8]} 4... a6 {[%clk 0:03:04.6]} 5. Bg5 {[%clk 0:02:46.3]}
5... Nc6 {[%clk 0:03:05.7]} 6. Qe3 {[%clk 0:02:46.9]} 6... Be7 {[%clk
0:02:54.8]} 7. Bxe7 {[%clk 0:02:40.9]} 7... Qxe7 {[%clk 0:02:55.4]} 8. Nc3
{[%clk 0:02:42.1]} 8... Nf6 {[%clk 0:02:56.4]} 9. O-O-O {[%clk 0:02:42.4]} 9...
O-O {[%clk 0:02:49.1]} 10. Bc4 {[%clk 0:02:40.9]} 10... Be6 {[%clk 0:02:48.4]}
11. Bb3 {[%clk 0:02:31.9]} 11... Rfe8 {[%clk 0:02:48.4]} 12. Rhe1 {[%clk
0:02:32]} 12... Bxb3 {[%clk 0:02:40.3]} 13. cxb3 {[%clk 0:02:31.8]} 13... b5
{[%clk 0:02:12.6]} 14. Kb1 {[%clk 0:02:31.9]} 14... b4 {[%clk 0:02:09.8]} 15.
Nd5 {[%clk 0:02:32.7]} 15... Nxd5 {[%clk 0:02:07.9]} 16. Rxd5 {[%clk 0:02:34.6]}
16... a5 {[%clk 0:01:53.1]} 17. Qd3 {[%clk 0:02:28.1]} 17... Qe6 {[%clk
0:01:37.5]} 18. Ng5 {[%clk 0:02:19.1]} 18... Qg6 {[%clk 0:01:34.3]} 19. f4
{[%clk 0:02:09.5]} 19... Ne7 {[%clk 0:01:21.6]} 20. Rd4 {[%clk 0:02:09.8]} 20...
Nc6 {[%clk 0:00:56]} 21. Rd5 {[%clk 0:01:31.9]} 21... Ne7 {[%clk 0:00:57]} 22.
Rd4 {[%clk 0:01:29]} 22... Nc6 {[%clk 0:00:57.8]} 23. Rd5 {[%clk 0:01:21.4]}
23... Ne7 {[%clk 0:00:29.6]} 24. Rb5 {[%clk 0:01:22.3]} 24... d5 {[%clk
0:00:26.5]} 25. h4 {[%clk 0:01:14.5]} 25... h6 {[%clk 0:00:24.8]} 26. Nf3 {[%clk
0:01:03.6]} 26... dxe4 {[%clk 0:00:16.9]} 27. Rxe4 {[%clk 0:01:04.2]} 27... Rad8
{[%clk 0:00:15.6]} 28. Qc2 {[%clk 0:01:04.8]} 28... Nf5 {[%clk 0:00:13.5]} 29.
Rxe8+ {[%clk 0:01:02]} 29... Rxe8 {[%clk 0:00:15.4]} 30. Rxf5 {[%clk 0:01:01.3]}
30... Qg3 {[%clk 0:00:15.2]} 31. Re5 {[%clk 0:00:57.5]} 31... Rd8 {[%clk
0:00:15]} 32. Qe2 {[%clk 0:00:56]} 32... Kh7 {[%clk 0:00:12.7]} 33. Qe4+ {[%clk
0:00:55.2]} 33... g6 {[%clk 0:00:13.9]} 34. Qe2 {[%clk 0:00:54.4]} 34... Qxf4
{[%clk 0:00:14.5]} 35. h5 {[%clk 0:00:54.2]} 35... g5 {[%clk 0:00:09.7]} 36.
Qe4+ {[%clk 0:00:50.3]} 36... Qxe4+ {[%clk 0:00:11.1]} 37. Rxe4 {[%clk
0:00:52.1]} 37... Kg7 {[%clk 0:00:12.1]} 38. Kc2 {[%clk 0:00:52.9]} 38... Kf6
{[%clk 0:00:13.2]} 39. Rc4 {[%clk 0:00:53.9]} 39... Rd5 {[%clk 0:00:09.9]} 40.
g4 {[%clk 0:00:54.3]} 40... c5 {[%clk 0:00:08.4]} 41. a3 {[%clk 0:00:54.8]}
41... Ke6 {[%clk 0:00:09]} 42. Re4+ {[%clk 0:00:55.2]} 42... Kd6 {[%clk
0:00:10.5]} 43. Nd2 {[%clk 0:00:54.9]} 43... f5 {[%clk 0:00:08.2]} 44. Nc4+
{[%clk 0:00:56]} 44... Kc6 {[%clk 0:00:09.3]} 45. Re6+ {[%clk 0:00:56.3]} 45...
Kd7 {[%clk 0:00:09.9]} 46. gxf5 {[%clk 0:00:54.7]} 46... Rxf5 {[%clk 0:00:10.5]}
47. Rxh6 {[%clk 0:00:55.8]} 47... Rf2+ {[%clk 0:00:11.5]} 48. Kd3 {[%clk
0:00:56.1]} 48... Rf3+ {[%clk 0:00:12.8]} 49. Ne3 {[%clk 0:00:52.9]} 49... a4
{[%clk 0:00:12.1]} 50. axb4 {[%clk 0:00:50.2]} 1-0

[Event "*** Titled Tuesday 3|2 Blitz"]
[Site "Chess.com"]
[Date "2017.03.07"]
[Round "10"]
[White "Schemato"]
[Black "HouseOfDurin"]
[Result "1-0"]
[WhiteElo "2246"]
[BlackElo "1849"]
[TimeControl "180+2"]
[EndTime "15:23:13 PST"]
[Termination "Schemato won by resignation"]

1. c4 {[%clk 0:03:02]} 1... c5 {[%clk 0:03:01]} 2. g3 {[%clk 0:03:02.4]} 2...
Nc6 {[%clk 0:03:02.2]} 3. Bg2 {[%clk 0:03:03.7]} 3... g6 {[%clk 0:03:03.4]} 4.
Nc3 {[%clk 0:03:04.7]} 4... Bg7 {[%clk 0:03:04.7]} 5. Nf3 {[%clk 0:03:06.1]}
5... e5 {[%clk 0:03:05.5]} 6. O-O {[%clk 0:03:05.3]} 6... Nge7 {[%clk
0:03:05.2]} 7. a3 {[%clk 0:03:06.6]} 7... O-O {[%clk 0:03:02.5]} 8. Rb1 {[%clk
0:03:07.7]} 8... a5 {[%clk 0:03:03.5]} 9. Ne1 {[%clk 0:03:08.6]} 9... d6 {[%clk
0:02:59.7]} 10. Nc2 {[%clk 0:03:09.5]} 10... Be6 {[%clk 0:02:54.7]} 11. Ne3
{[%clk 0:03:10]} 11... f5 {[%clk 0:02:47.9]} 12. d3 {[%clk 0:03:11]} 12... Rb8
{[%clk 0:02:35.8]} 13. Bd2 {[%clk 0:03:10.5]} 13... b6 {[%clk 0:02:31.6]} 14.
Ned5 {[%clk 0:03:08.3]} 14... h6 {[%clk 0:02:12.8]} 15. b4 {[%clk 0:03:08.6]}
15... axb4 {[%clk 0:02:12.9]} 16. axb4 {[%clk 0:03:09.2]} 16... Kh7 {[%clk
0:01:45.3]} 17. Nxe7 {[%clk 0:02:44.1]} 17... Nxe7 {[%clk 0:01:47.2]} 18. Qa4
{[%clk 0:02:36]} 18... Qd7 {[%clk 0:01:03.2]} 19. Qxd7 {[%clk 0:02:26.1]} 19...
Bxd7 {[%clk 0:01:05.1]} 20. Rb3 {[%clk 0:02:24]} 20... Bc6 {[%clk 0:00:50.2]}
21. Rfb1 {[%clk 0:02:24]} 21... Bxg2 {[%clk 0:00:49.7]} 22. Kxg2 {[%clk
0:02:25.9]} 22... Nc6 {[%clk 0:00:31.6]} 23. bxc5 {[%clk 0:02:22.8]} 23... bxc5
{[%clk 0:00:33.5]} 24. Be3 {[%clk 0:02:11.5]} 24... Rxb3 {[%clk 0:00:24.4]} 25.
Rxb3 {[%clk 0:02:13.4]} 25... Rb8 {[%clk 0:00:21.2]} 26. Rxb8 {[%clk 0:02:04.2]}
26... Nxb8 {[%clk 0:00:23.1]} 27. Nd5 {[%clk 0:02:05.4]} 27... Bf8 {[%clk
0:00:19.7]} 28. Kf1 {[%clk 0:02:05.2]} 28... g5 {[%clk 0:00:17.7]} 29. f3 {[%clk
0:02:04.1]} 29... Kg6 {[%clk 0:00:16.9]} 30. g4 {[%clk 0:02:04.9]} 30... f4
{[%clk 0:00:11.5]} 31. Bd2 {[%clk 0:02:06]} 31... Nc6 {[%clk 0:00:11.6]} 32. Bc3
{[%clk 0:02:06.8]} 32... Be7 {[%clk 0:00:10.2]} 33. Ke1 {[%clk 0:02:05.8]} 33...
Bd8 {[%clk 0:00:10]} 34. Kd1 {[%clk 0:02:05.6]} 34... h5 {[%clk 0:00:10.2]} 35.
h3 {[%clk 0:02:06.2]} 35... hxg4 {[%clk 0:00:11.2]} 36. hxg4 {[%clk 0:02:07.2]}
36... Ba5 {[%clk 0:00:07.6]} 37. Ne7+ {[%clk 0:01:23.6]} 37... Nxe7 {[%clk
0:00:05.5]} 38. Bxa5 {[%clk 0:01:24.6]} 38... Kf7 {[%clk 0:00:06.4]} 39. Kc2
{[%clk 0:01:21.4]} 39... Nc6 {[%clk 0:00:06.1]} 40. Bc3 {[%clk 0:01:20.7]} 40...
Ke7 {[%clk 0:00:06.2]} 41. Kb3 {[%clk 0:01:21.9]} 41... Ke6 {[%clk 0:00:03.5]}
42. Ka4 {[%clk 0:01:23]} 42... Ne7 {[%clk 0:00:04.2]} 43. Kb5 {[%clk 0:01:22.3]}
43... Ng6 {[%clk 0:00:05.1]} 44. Kc6 {[%clk 0:01:20.7]} 44... Nh4 {[%clk
0:00:05.8]} 45. Ba5 {[%clk 0:01:16.6]} 45... Ng2 {[%clk 0:00:04.5]} 46. Bc7
{[%clk 0:01:17.3]} 46... Ne3 {[%clk 0:00:05]} 47. Bxd6 {[%clk 0:01:17.1]} 47...
Nd1 {[%clk 0:00:06.2]} 48. Bxc5 {[%clk 0:01:16.5]} 48... Nc3 {[%clk 0:00:07.8]}
49. e3 {[%clk 0:01:08.1]} 49... Nd1 {[%clk 0:00:06.6]} 50. exf4 {[%clk
0:01:06.9]} 50... exf4 {[%clk 0:00:05.2]} 51. d4 {[%clk 0:01:06.8]} 51... Ne3
{[%clk 0:00:04.2]} 52. d5+ {[%clk 0:01:08.7]} 52... Kf7 {[%clk 0:00:03.3]} 53.
d6 {[%clk 0:00:53.1]} 53... Ke8 {[%clk 0:00:03.8]} 54. d7+ {[%clk 0:00:53.1]}
54... Kd8 {[%clk 0:00:05.1]} 55. Bb6+ {[%clk 0:00:53.9]} 55... Ke7 {[%clk
0:00:06.6]} 56. d8=Q+ {[%clk 0:00:54.7]} 56... Kf7 {[%clk 0:00:08.5]} 1-0

[Event "*** Titled Tuesday 3|2 Blitz"]
[Site "Chess.com"]
[Date "2017.03.07"]
[Round "10"]
[White "jk13"]
[Black "StellarChessPro"]
[Result "1-0"]
[WhiteElo "2498"]
[BlackElo "2348"]
[TimeControl "180+2"]
[EndTime "15:23:32 PST"]
[Termination "jk13 won by resignation"]

1. d4 {[%clk 0:03:02]} 1... d5 {[%clk 0:03:00.6]} 2. Bf4 {[%clk 0:03:03.3]} 2...
Nd7 {[%clk 0:03:01]} 3. e3 {[%clk 0:03:04.5]} 3... Ngf6 {[%clk 0:03:02.2]} 4.
Nf3 {[%clk 0:03:06]} 4... g6 {[%clk 0:03:03.7]} 5. h3 {[%clk 0:03:07.2]} 5...
Bg7 {[%clk 0:03:05.4]} 6. Be2 {[%clk 0:03:07.9]} 6... c5 {[%clk 0:03:07]} 7. c3
{[%clk 0:03:08.7]} 7... cxd4 {[%clk 0:03:08.2]} 8. exd4 {[%clk 0:03:08.9]} 8...
O-O {[%clk 0:03:10.1]} 9. O-O {[%clk 0:03:09.3]} 9... Ne4 {[%clk 0:03:11.7]} 10.
Nbd2 {[%clk 0:03:09.8]} 10... Nxd2 {[%clk 0:03:13]} 11. Qxd2 {[%clk 0:03:10.6]}
11... a5 {[%clk 0:03:13.9]} 12. a4 {[%clk 0:03:11]} 12... b6 {[%clk 0:03:11.4]}
13. Bh6 {[%clk 0:03:10.4]} 13... Nf6 {[%clk 0:03:04.7]} 14. Bxg7 {[%clk
0:02:53.2]} 14... Kxg7 {[%clk 0:03:06.6]} 15. Bd3 {[%clk 0:02:49.5]} 15... Ba6
{[%clk 0:03:04.1]} 16. Bxa6 {[%clk 0:02:45.4]} 16... Rxa6 {[%clk 0:03:06]} 17.
Qe2 {[%clk 0:02:44.9]} 17... Ra8 {[%clk 0:03:01.3]} 18. Rfe1 {[%clk 0:02:44.1]}
18... e6 {[%clk 0:03:00.8]} 19. Ne5 {[%clk 0:02:42.4]} 19... Nd7 {[%clk
0:02:59.5]} 20. f4 {[%clk 0:02:37.8]} 20... Nxe5 {[%clk 0:02:59.8]} 21. fxe5
{[%clk 0:02:38.8]} 21... f6 {[%clk 0:02:39.5]} 22. exf6+ {[%clk 0:02:39.5]}
22... Rxf6 {[%clk 0:02:30.6]} 23. Rf1 {[%clk 0:02:12.4]} 23... Rxf1+ {[%clk
0:02:13.3]} 24. Rxf1 {[%clk 0:02:14.3]} 24... Qd6 {[%clk 0:02:13.4]} 25. Rf3
{[%clk 0:02:09.2]} 25... Rf8 {[%clk 0:02:12.4]} 26. Re3 {[%clk 0:02:09.3]} 26...
Rf6 {[%clk 0:02:10.4]} 27. Re5 {[%clk 0:02:10.1]} 27... Qd7 {[%clk 0:02:06.6]}
28. b3 {[%clk 0:01:53.4]} 28... Qd6 {[%clk 0:02:00.9]} 29. Qe3 {[%clk
0:01:46.7]} 29... h6 {[%clk 0:01:54]} 30. Qe1 {[%clk 0:01:42.1]} 30... g5 {[%clk
0:01:53.6]} 31. Qe2 {[%clk 0:01:39.1]} 31... Kf7 {[%clk 0:01:47.8]} 32. Qd3
{[%clk 0:01:33.3]} 32... Kg7 {[%clk 0:01:46.8]} 33. Qe2 {[%clk 0:00:59.5]} 33...
Kf7 {[%clk 0:01:46.2]} 34. Qa6 {[%clk 0:00:56.6]} 34... Rf5 {[%clk 0:01:37.3]}
35. Qb7+ {[%clk 0:00:55]} 35... Kg6 {[%clk 0:01:24.7]} 36. Re3 {[%clk
0:00:46.8]} 36... Rf6 {[%clk 0:01:09.1]} 37. Re5 {[%clk 0:00:37.8]} 37... Rf5
{[%clk 0:01:09.3]} 38. Rxf5 {[%clk 0:00:33.4]} 38... exf5 {[%clk 0:01:09.7]} 39.
Qc8 {[%clk 0:00:33.5]} 39... h5 {[%clk 0:00:45.7]} 40. Qe8+ {[%clk 0:00:33.5]}
40... Kh6 {[%clk 0:00:46.5]} 41. Qh8+ {[%clk 0:00:33.6]} 41... Kg6 {[%clk
0:00:47.8]} 42. Qg8+ {[%clk 0:00:34.2]} 42... Kf6 {[%clk 0:00:47.1]} 43. Qh7
{[%clk 0:00:33.6]} 43... Qg3 {[%clk 0:00:45.3]} 44. Qh6+ {[%clk 0:00:28.1]}
44... Ke7 {[%clk 0:00:44.5]} 45. Qxh5 {[%clk 0:00:29.1]} 45... Qe3+ {[%clk
0:00:40.5]} 46. Kh2 {[%clk 0:00:26.1]} 46... Qf4+ {[%clk 0:00:40.8]} 47. Kg1
{[%clk 0:00:26.2]} 47... Qe3+ {[%clk 0:00:41.9]} 48. Kf1 {[%clk 0:00:27.3]}
48... Qc1+ {[%clk 0:00:38.8]} 49. Kf2 {[%clk 0:00:27.9]} 49... Qf4+ {[%clk
0:00:37.1]} 50. Qf3 {[%clk 0:00:28.1]} 50... Qh4+ {[%clk 0:00:37.2]} 51. Ke2
{[%clk 0:00:28.3]} 51... Ke6 {[%clk 0:00:33.8]} 52. Qe3+ {[%clk 0:00:27.9]}
52... Kd7 {[%clk 0:00:33.7]} 53. Qe5 {[%clk 0:00:27.1]} 53... Qe4+ {[%clk
0:00:31.8]} 54. Qxe4 {[%clk 0:00:27.6]} 54... dxe4 {[%clk 0:00:33.5]} 55. c4
{[%clk 0:00:25.2]} 55... f4 {[%clk 0:00:33.3]} 56. Kf2 {[%clk 0:00:23.1]} 56...
e3+ {[%clk 0:00:32.3]} 57. Kf3 {[%clk 0:00:23.6]} 57... Kd6 {[%clk 0:00:34]} 58.
g3 {[%clk 0:00:23.8]} 58... Ke6 {[%clk 0:00:34]} 59. gxf4 {[%clk 0:00:24.4]}
59... gxf4 {[%clk 0:00:35.9]} 60. h4 {[%clk 0:00:24]} 60... Kf5 {[%clk
0:00:37.4]} 61. d5 {[%clk 0:00:25.1]} 61... Ke5 {[%clk 0:00:38.7]} 62. h5 {[%clk
0:00:26.3]} 62... Kd4 {[%clk 0:00:38.7]} 63. d6 {[%clk 0:00:25.4]} 63... e2
{[%clk 0:00:36.3]} 64. Kxe2 {[%clk 0:00:25.4]} 1-0